[Event "34th Pula Open 2022"]
[Site "Pula"]
[Date "2022.06.21"]
[Round "5.2"]
[White "Hadzovic, Amir"]
[Black "De Vleeschauwer, Maarten"]
[Result "0-1"]
[ECO "C26"]
[WhiteElo "2270"]
[BlackElo "2255"]
[Annotator "TA"]
[PlyCount "68"]
[EventDate "2022.06.18"]
[EventType "swiss"]
[EventCountry "CRO"]
[SourceTitle "playchess.com"]
[Source "ChessBase"]
[SourceQuality "1"]
[TimeControl "5400+30"]

{[%evp 13,68,-3,22,14,62,56,61,60,76,74,94,60,60,52,56,75,65,20,38,34,28,-26,39,24,79,0,84,79,82,98,89,72,109,98,101,77,78,105,102,105,117,112,118,106,112,100,271,284,271,281,257,138,1218,1187,1088,1009,893]} 1. e4 {[%emt 0:00:05]} e5 {[%emt 0:00:10]} 2. Nc3 {[%emt 0:00:41]} Nf6 {[%emt 0:00:42]} 3. g3 {[%emt 0:00:16]} Nc6 {[%emt 0:02:35]} 4. Bg2 {[%emt 0:00:07]} Bc5 {[%emt 0:00:30]} 5. Nge2 {[%emt 0:00:34]} a6 {[%emt 0:10:09]} 6. d3 {[%emt 0:01:53][%cal Bd2d3,Bd3d4,Bd4d5][%mdl 32]} d6 {[%emt 0:00:48]} 7. O-O {[%emt 0:00:21] 7.h3 is vanishing.} Be6 {[%emt 0:06:51]} 8. Nd5 {[%emt 0:04:39] C26: Vienna Game: 2...Nf6, sidelines .} Ne7 {[%emt 0:24:17]} (8... Nd4 $11) 9. Nxf6+ $14 {[%emt 0:16:19]} gxf6 {[%emt 0:00:05] [#]} 10. d4 $146 {[%emt 0:00:46] White is slightly better.} ({Predecessor:} 10. c3 Qd7 11. d4 Bb6 12. Be3 O-O-O 13. d5 Bh3 14. Bxb6 cxb6 15. f3 Bxg2 16. Kxg2 {0-1 (29) Novitsky,L (2113)-Popelyshev,I (2190) Kostroma 2008}) 10... Ba7 {[%emt 0:01:44]} 11. Be3 {[%emt 0:03:53]} Qd7 {[%emt 0:09:18]} 12. d5 {[%emt 0:11:30]} Bh3 {[%emt 0:01:05]} 13. Bxa7 {[%emt 0:00:09]} Rxa7 {[%emt 0:00:05]} 14. f4 {[%emt 0:02:25]} h5 {[%emt 0:06:04][%cal Bh7h5,Bh5h4][%mdl 32]} 15. Qe1 {[%emt 0:11:18]} Bxg2 {[%emt 0:06:20]} 16. Kxg2 {[%emt 0:00:11]} h4 {[%emt 0:00:42]} 17. f5 {[%emt 0:02:08]} (17. Qc3 $142) 17... Ra8 {[%emt 0:07:26]} (17... hxg3 $11 18. Nxg3 Qa4) 18. a4 {[%emt 0:07:44]} (18. gxh4 Qa4 19. Ng3 Rxh4 $15) 18... Nc8 {[%emt 0:08:11]} (18... c6 $11 {remains equal.}) 19. Rf3 {[%emt 0:01:44]} (19. g4 $16) 19... Ke7 {[%emt 0:01:17]} (19... hxg3 $1 $11 20. Rxg3 (20. Qxg3 Nb6 $11) 20... c6) 20. g4 {[%emt 0:00:42]} a5 {[%emt 0:08:40]} 21. Rh3 {[%emt 0:05:13]} Nb6 {[%emt 0:00:30]} 22. b3 {[%emt 0:00:20]} Rag8 {[%emt 0:01:18]} 23. Kf3 {[%emt 0:03:56]} (23. Rxh4 Rxh4 24. Qxh4 c6 $14) 23... Nxd5 {[%emt 0:00:14] [#] White must now prevent ...Nb4.} 24. Qxa5 {[%emt 0:06:01]} ({Much worse is} 24. exd5 {[#]} Rxg4 $3 {[%mdl 512]} 25. Kf2 (25. Kxg4 $2 {is the wrong capture.} Rg8+ 26. Kf3 Qxf5+ 27. Ke3 Qxh3+ 28. Kd2 Rg2 $19) 25... Qxf5+ 26. Rf3 Qg5 $15) 24... Nb6 {[%emt 0:00:23][%cal Bd5b6,Bb6d7,Bd7c5,Bc5b3][%mdl 32]} 25. c4 {[%emt 0:00:50]} Qc6 {[%emt 0:00:13][%cal Og8g4]} 26. Nc3 {[%emt 0:01:07]} Kf8 {[%emt 0:02:06][%cal Ob6c4]} 27. Qb4 {[%emt 0:09:09]} Kg7 {[%emt 0:00:16]} 28. a5 {[%emt 0:01:24][%cal Ba4a5,Ba5a6][%mdl 32]} Nd7 {[%emt 0:00:10]} 29. Nd5 {[%emt 0:00:40]} b6 $2 {[%emt 0:00:30]} (29... Ra8 $16) 30. a6 $18 {[%emt 0:03:40]} Nc5 {[%emt 0:01:14]} 31. Qc3 {[%emt 0:01:37] Strongly threatening b4.} b5 {[%emt 0:00:12]} 32. g5 {[%emt 0:01:53]} ({Better is} 32. a7 $18) 32... Rh5 $2 {[%emt 0:01:09][%mdl 8192]} (32... fxg5 $16 33. Qe3 f6) 33. gxf6+ {[%emt 0:01:01]} Kh7 {[%emt 0:00:05]} 34. Qe1 {[%emt 0:01:15][%cal Oe1h4] White threatens Qxh4! and mate.} Nxb3 {[%emt 0:01:04][%mdl 32768] Weighted Error Value: White=0.16 (very precise) /Black=0.25 (precise) . Loss on time!?} 0-1

[Event "34th Pula Open 2022"]
[Site "Pula"]
[Date "2022.06.21"]
[Round "5.3"]
[White "Bochnicka, Vladimir"]
[Black "Nikcevic, Nebojsa"]
[Result "0-1"]
[ECO "B38"]
[WhiteElo "2267"]
[BlackElo "2387"]
[Annotator "TA"]
[PlyCount "90"]
[EventDate "2022.06.18"]
[EventType "swiss"]
[EventCountry "CRO"]
[SourceTitle "playchess.com"]
[Source "ChessBase"]
[SourceQuality "1"]
[TimeControl "5400+30"]

{[%evp 22,90,63,37,41,44,42,5,10,9,16,21,47,23,24,25,29,0,0,0,0,0,0,-7,29,42,244,237,231,217,429,437,589,103,103,45,54,0,0,0,0,0,0,0,0,0,0,0,66,68,80,0,5,-219,-208,-316,-290,-521,-252,-256,-260,-268,-267,-254,-241,-232,-221,-1693,-1458,-5991,-5129]} 1. e4 {[%emt 0:00:15]} c5 {[%emt 0:00:56]} 2. Nf3 {[%emt 0:00:08]} Nc6 {[%emt 0:00:32]} 3. d4 {[%emt 0:00:07]} cxd4 {[%emt 0:00:22]} 4. Nxd4 {[%emt 0:00:06]} g6 {[%emt 0:00:06]} 5. c4 {[%emt 0:00:13]} Bg7 {[%emt 0:02:23]} 6. Be3 {[%emt 0:00:10]} Nf6 {[%emt 0:00:07]} 7. Nc3 {[%emt 0:00:07]} O-O {[%emt 0:00:25]} 8. Be2 {[%emt 0:00:44]} d6 {[%emt 0:00:08]} 9. O-O {[%emt 0:00:33]} a6 {[%emt 0:00:05]} 10. f3 {[%emt 0:03:05]} Nxd4 {[%emt 0:07:54]} 11. Bxd4 {[%emt 0:00:33]} Be6 {[%emt 0:00:14]} 12. Qd2 {[%emt 0:09:22]} Qa5 {[%emt 0:00:38] B38: Sicilian: Maroczy Bind with 5...Bg7 and 7...0-0.} 13. Rab1 {[%emt 0:05:48]} (13. a4 {seems wilder.} Nd7 14. Bxg7 Kxg7 15. b3) 13... Rfc8 {[%emt 0:00:58]} 14. b4 {[%emt 0:05:37]} (14. b3 {looks sharper.} Nd7 15. Bxg7 Kxg7 16. a4) 14... Qd8 {[%emt 0:00:34] The position is equal.} 15. Nd5 {[%emt 0:08:13]} Bxd5 {[%emt 0:11:48]} 16. exd5 {[%emt 0:00:34] [#]} a5 $146 {[%emt 0:00:45]} ({Predecessor:} 16... Nd7 17. Bf2 a5 18. a3 axb4 19. axb4 Ra3 20. Rfc1 b6 21. Bd4 Qf8 22. Bf2 Bf6 {½-½ (42) Antic,D (2518)-Ivanisevic,I (2530) Novi Sad 2000}) 17. a3 {[%emt 0:08:01]} axb4 {[%emt 0:05:09]} 18. axb4 {[%emt 0:02:59]} Nd7 {[%emt 0:03:16]} 19. Rfc1 {[%emt 0:04:04]} Bxd4+ {[%emt 0:05:00]} 20. Qxd4 {[%emt 0:00:05]} Ra2 {[%emt 0:00:08]} 21. Bf1 {[%emt 0:06:01]} Qb6 {[%emt 0:05:22] Prevents c5.} 22. c5 $1 {[%emt 0:03:26]} Qa7 {[%emt 0:00:27][%cal Rd6c5]} 23. Qg4 {[%emt 0:07:19]} f5 $2 {[%emt 0:00:13]} (23... Rc7 $14) 24. Qg5 $18 {[%emt 0:02:02]} Nf6 {[%emt 0:09:18][%cal Rd6c5,Bd7f6,Bf6e8,Be8d6][%mdl 32]} 25. Qe3 {[%emt 0:02:01]} Kf8 $2 {[%emt 0:00:14]} (25... Rc7 26. Qe6+ Kf8) 26. Kh1 {[%emt 0:03:40] Strongly threatening Qe6.} Rc7 {[%emt 0:17:40]} 27. Qe6 $2 {[%emt 0:11:02]} (27. Qh6+ $18 {is the precise move to win.} Kg8 28. cxd6 (28. Bc4 Ra3 $16) 28... Rxc1 29. Rxc1) 27... Qa3 $16 {[%emt 0:00:05]} (27... dxc5 $2 28. d6 b5 29. dxc7 $18) 28. Re1 {[%emt 0:08:43]} (28. Rd1 $16 Ne8 29. c6) 28... Ne8 $14 {[%emt 0:02:30]} (28... dxc5 $2 29. d6 Rd7 30. dxe7+ Kg7 31. e8=N+ $18) 29. cxd6 {[%emt 0:04:05]} (29. c6 $1 $14 Qc3 30. b5) 29... Nxd6 $11 {[%emt 0:00:33]} 30. Qe5 {[%emt 0:00:11] Threatens to win with Qh8+.} Qc3 {[%emt 0:01:15]} 31. Qf4 $1 {[%emt 0:00:43]} Kf7 {[%emt 0:11:13]} 32. b5 {[%emt 0:01:00]} b6 {[%emt 0:00:44]} 33. Qh6 {[%emt 0:00:30]} Qg7 {[%emt 0:00:19]} 34. Qe3 {[%emt 0:00:09]} Qf6 {[%emt 0:05:22] Active counter play!} ({Black should play} 34... Rb7 $1 $11) 35. Qxb6 $14 {[%emt 0:00:59]} Rcc2 {[%emt 0:00:15]} 36. Re6 {[%emt 0:02:44]} (36. Qe3 $1 $16 {[%cal Re3h6]}) 36... Qg5 $11 {[%emt 0:02:57]} 37. Qe3 $2 {[%emt 0:02:33] [#]} (37. Qg1 $11 {and White has nothing to worry.}) 37... f4 $1 $19 {[%emt 0:00:50]} 38. Qe5 {[%emt 0:00:29] [#]} (38. Qe1 $142 Rxg2 39. Be2 (39. Rxe7+ $2 Kf8 $19)) 38... Nf5 $1 {[%emt 0:00:36]} 39. Re1 $2 {[%emt 0:00:56]} ({But not} 39. Qh8 Rxg2 40. Qxh7+ Ke8 $19) (39. d6 exd6 40. Qh8 (40. Rxd6 {gets mated.} Ng3+ 41. hxg3 Qxe5 42. Rd7+ Kg8 43. Rd8+ Kg7 44. g4 Qf6 45. Rd7+ Kh6) 40... Kxe6 41. b6) 39... Rf2 $40 {[%emt 0:03:22][%mdl 128] Black attacks with force.} (39... Rxg2 $142 {[%csl Ga2][%cal Rg2h2]} 40. Rxe7+ Nxe7 41. Qxg5 Rxg5) 40. Rxe7+ {[%emt 0:00:21]} Qxe7 {[%emt 0:00:09] The board is on fire.} 41. Qxe7+ {[%emt 0:00:40]} Nxe7 {[%emt 0:00:09]} 42. d6 {[%emt 0:00:53]} Nf5 {[%emt 0:00:54] And now ...Ne3 would win.} ({Worse is} 42... Nd5 43. Bc4 Rfd2 44. Bxa2 Rxa2 45. Kg1 $19) 43. Bc4+ {[%emt 0:00:00]} Kg7 {[%emt 0:04:52]} 44. d7 $2 {[%emt 0:00:29]} (44. Bxa2 Rxa2 45. d7) 44... Rad2 {[%emt 0:00:23] aiming for ...Ne3.} 45. Be6 {[%emt 0:00:07]} Rfe2 {[%emt 0:00:30] Never resign too early!  Weighted Error Value: White=0.83/Black=0.29 (precise)} 0-1

[Event "34th Pula Open 2022"]
[Site "Pula"]
[Date "2022.06.21"]
[Round "5.4"]
[White "Kejzar, Petra"]
[Black "Maki-Uuro, Miikka"]
[Result "0-1"]
[ECO "A21"]
[WhiteElo "2055"]
[BlackElo "2332"]
[Annotator "TA"]
[PlyCount "60"]
[EventDate "2022.06.18"]
[EventType "swiss"]
[EventCountry "CRO"]
[SourceTitle "playchess.com"]
[Source "ChessBase"]
[SourceQuality "1"]
[TimeControl "5400+30"]

{[%evp 10,60,11,16,21,0,0,0,14,0,11,-13,0,0,0,0,0,-29,0,-14,-4,0,0,-11,-5,0,3,-11,0,-15,-18,-31,-12,-79,-22,-189,-193,-443,-433,-425,-437,-420,-428,-1666,-1649,-29978,-29976,-29975,-29976,-29991,-29991,-29994,-29993]} 1. c4 {[%emt 0:00:03]} e5 {[%emt 0:00:13]} 2. Nc3 {[%emt 0:00:18]} Bb4 {[%emt 0:00:15]} 3. g3 {[%emt 0:00:43]} Bxc3 {[%emt 0:00:09]} 4. bxc3 {[%emt 0:01:18]} d6 {[%emt 0:00:29]} 5. Bg2 {[%emt 0:00:40]} Nc6 {[%emt 0:00:34]} 6. d3 {[%emt 0:03:41]} Nge7 $1 {[%emt 0:01:13] The main line 6...Nge7 scores better than 6...f5. A21: English Opening: 1...e5 2 Nc3.} 7. Rb1 {[%emt 0:05:55]} O-O {[%emt 0:02:01]} 8. Nf3 {[%emt 0:00:23]} h6 {[%emt 0:08:28] The position is equal.} 9. O-O {[%emt 0:04:59]} Rb8 {[%emt 0:09:15]} 10. Ne1 {[%emt 0:10:40]} Be6 {[%emt 0:11:07]} 11. Nc2 {[%emt 0:03:56]} Qd7 {[%emt 0:01:15]} 12. Ne3 {[%emt 0:06:01]} Bh3 {[%emt 0:04:25]} 13. Nd5 {[%emt 0:01:13]} Nxd5 {[%emt 0:08:51]} 14. cxd5 {[%emt 0:00:21]} Bxg2 {[%emt 0:00:20]} 15. Kxg2 {[%emt 0:00:08]} Ne7 {[%emt 0:00:11]} 16. e4 {[%emt 0:03:50] [#]} f5 $146 {[%emt 0:18:33]} ({Predecessor:} 16... c6 17. dxc6 Qxc6 18. Qb3 b6 19. Ba3 Rbc8 20. c4 Kh8 21. Qb5 Qc7 22. f4 {½-½ (22) Schatz,C (2125)-Eiber,M (2185) Bayern 2002}) 17. f3 {[%emt 0:03:41]} Rf7 {[%emt 0:15:01]} 18. Be3 {[%emt 0:06:49]} b6 {[%emt 0:00:22]} 19. Qb3 {[%emt 0:02:31]} Rbf8 {[%emt 0:00:26]} 20. Qb5 {[%emt 0:00:28]} Qc8 {[%emt 0:00:22]} 21. Rb4 {[%emt 0:07:47]} (21. Bd2 $11) 21... Ng6 {[%emt 0:00:48]} ({Better is} 21... g5 $17 {Strongly threatening ...f4.} 22. Rb2 f4 23. gxf4 gxf4) 22. Ra4 $2 {[%emt 0:05:59] [#] Now White is beyond hope.} (22. exf5 $1 $11 Rxf5 23. Re4) 22... f4 $1 $19 {[%emt 0:01:10]} 23. Bg1 {[%emt 0:05:32]} (23. Bd2) 23... fxg3 {[%emt 0:00:21]} 24. hxg3 {[%emt 0:00:12]} h5 {[%emt 0:02:44][%cal Bh6h5,Bh5h4,Bh4h3][%mdl 32]} ({Don't go for} 24... a5 $2 25. d4 $19) 25. Bh2 {[%emt 0:10:42]} h4 {[%emt 0:01:33]} 26. Rxa7 {[%emt 0:00:53]} (26. Qb2 $142 h3+ 27. Kh1 Rxf3 28. Rxf3 Rxf3 29. Qe2) 26... h3+ {[%emt 0:03:24]} 27. Kg1 {[%emt 0:00:22]} Rxf3 {[%emt 0:00:49] Black mates.} 28. Rxf3 {[%emt 0:00:44]} Rxf3 {[%emt 0:00:06]} 29. Qa4 {[%emt 0:04:21]} Qg4 {[%emt 0:01:18]} 30. Qc2 {[%emt 0:01:02]} Nf4 {[%emt 0:01:29] Weighted Error Value: White=0.87/Black=0.08 (flawless)} 0-1

[Event "34th Pula Open 2022"]
[Site "Pula"]
[Date "2022.06.21"]
[Round "5.5"]
[White "Compel, Daniel"]
[Black "Lim, Zhuo Ren"]
[Result "0-1"]
[ECO "E04"]
[WhiteElo "2106"]
[BlackElo "2290"]
[Annotator "TA"]
[PlyCount "96"]
[EventDate "2022.06.18"]
[EventType "swiss"]
[EventCountry "CRO"]
[SourceTitle "playchess.com"]
[Source "ChessBase"]
[SourceQuality "1"]
[TimeControl "5400+30"]

{[%evp 13,96,6,12,-4,23,0,13,22,24,27,0,-13,-16,0,0,-23,-6,-34,17,-33,-27,-75,-75,-90,-56,-65,22,-22,0,0,0,-34,0,0,0,0,8,-8,0,0,35,21,19,-5,0,0,0,0,0,0,0,-352,-367,-286,-343,-391,-339,-352,-331,-347,-344,-334,-327,-323,-258,-260,-244,-765,-749,-29992,-953,-849,-473,-600,-421,-451,-439,-1197,-1349,-1010,-731,-29981,-29982,-29997,-182]} 1. d4 {[%emt 0:00:02]} Nf6 {[%emt 0:00:14]} 2. c4 {[%emt 0:00:06]} e6 {[%emt 0:00:06]} 3. Nf3 {[%emt 0:00:05]} d5 {[%emt 0:00:04]} 4. g3 {[%emt 0:00:03]} dxc4 {[%emt 0:00:03]} 5. Bg2 {[%emt 0:00:05]} a6 {[%emt 0:00:01]} 6. O-O {[%emt 0:01:52]} Nc6 {[%emt 0:00:23]} 7. a4 {[%emt 0:00:45]} Rb8 {[%emt 0:00:26]} 8. e3 {[%emt 0:01:57] E04: Open Catalan: 5 Nf3.} b5 {[%emt 0:01:51]} (8... Bd6 $5 {[%cal Re8g8]}) 9. Nfd2 {[%emt 0:07:21]} Bb7 {[%emt 0:02:06]} 10. axb5 {[%emt 0:01:04] The position is equal.} axb5 {[%emt 0:00:02]} 11. b3 {[%emt 0:02:37]} cxb3 {[%emt 0:05:17]} 12. Nxb3 {[%emt 0:02:30] [#]} Nb4 $146 {[%emt 0:00:00]} ({Predecessor:} 12... Be7 13. Nc3 Nb4 14. Bxb7 Rxb7 15. Ba3 O-O 16. Na5 Rb6 17. Qb1 Nbd5 18. Bxe7 Qxe7 {½-½ (36) Dudin,G (2395)-Hayrapetyan,H (2488) Tornelo INT 2020}) 13. Bxb7 {[%emt 0:05:42]} Rxb7 {[%emt 0:00:00]} 14. Qf3 {[%emt 0:01:16]} Rb8 {[%emt 0:00:00]} 15. Nc3 {[%emt 0:00:01] Inhibits Qd5.} Nbd5 {[%emt 0:02:48]} (15... Be7 $1 $15) 16. Ne2 {[%emt 0:00:10]} (16. e4 $1 $11 Nxc3 17. Qxc3) 16... Be7 {[%emt 0:01:09]} 17. Bb2 {[%emt 0:04:46]} (17. e4 $11 Nb6 18. Bf4) 17... O-O $17 {[%emt 0:00:28]} 18. Rfc1 {[%emt 0:02:59]} Qd7 {[%emt 0:01:28]} 19. e4 {[%emt 0:01:56]} Nb4 {[%emt 0:04:23]} ({Black should play} 19... Nb6 $1 $15) 20. Ra7 {[%emt 0:01:58][%mdl 1024] White has compensation.} Nc6 {[%emt 0:01:17]} 21. Ra6 $36 {[%emt 0:00:47][%mdl 2048] White is pushing.} Nb4 {[%emt 0:00:19]} 22. Ra7 {[%emt 0:00:04]} Nc6 {[%emt 0:00:04]} 23. Ra6 {[%emt 0:00:04]} Rb6 {[%emt 0:00:03]} 24. Raa1 {[%emt 0:11:32]} Rd8 {[%emt 0:10:23]} 25. h4 {[%emt 0:03:24]} Qe8 {[%emt 0:01:23]} 26. Nf4 {[%emt 0:06:46]} Nb4 {[%emt 0:10:15]} 27. Rxc7 {[%emt 0:04:45][%cal Od4d5] With the idea d5!} Bd6 {[%emt 0:00:12]} 28. Rca7 {[%emt 0:06:02] [#] Hoping for e5.} Bxf4 {[%emt 0:17:17]} 29. gxf4 {[%emt 0:04:25]} h5 {[%emt 0:01:27]} 30. Nc5 {[%emt 0:01:03]} Nc6 {[%emt 0:04:08][%csl LRa7,LRd4]} 31. Rc7 {[%emt 0:01:40][%cal Od4d5] aiming for d5!} Nxd4 {[%emt 0:13:11]} 32. Qe3 {[%emt 0:04:20][%mdl 8192] White is on the road to losing.} (32. Bxd4 $11 {and White stays safe.} Rxd4 33. Raa7) 32... Ng4 $19 {[%emt 0:01:29] Pair of Knights!} 33. Qd3 {[%emt 0:00:21]} Rc6 {[%emt 0:02:24]} ({Inferior is} 33... e5 34. Raa7 Rf6 35. Re7 $17) 34. Raa7 {[%emt 0:02:34]} Rxc7 {[%emt 0:03:45] The board is on fire.} 35. Rxc7 {[%emt 0:00:10] [#]} e5 $1 {[%emt 0:00:27]} 36. Nb7 {[%emt 0:04:00]} Rd7 {[%emt 0:01:37]} 37. Rxd7 {[%emt 0:01:49]} Qxd7 {[%emt 0:00:01]} 38. Nc5 {[%emt 0:01:12]} Qe7 {[%emt 0:01:08]} 39. Bxd4 {[%emt 0:00:27]} ({Wrong is} 39. fxe5 $2 Nxe5 40. Qa3 Ndf3+ 41. Kf1 Nc4 42. Qa8+ Kh7 $19) 39... exd4 {[%emt 0:00:17]} 40. Qxb5 {[%emt 0:02:08]} (40. Qxd4 Qxh4 41. Nd3) 40... Qxh4 {[%emt 0:00:50][%mdl 4096] Endgame KQN-KQN} 41. Qe8+ {[%emt 0:00:00]} Kh7 {[%emt 0:00:03]} 42. Nd3 {[%emt 0:00:00]} Qh2+ {[%emt 0:02:32]} 43. Kf1 {[%emt 0:00:00]} Qh1+ {[%emt 0:00:28]} 44. Ke2 {[%emt 0:00:00]} Nf6 {[%emt 0:00:12]} 45. Qxf7 {[%emt 0:01:21]} (45. Qe5 $142 Qxe4+ 46. Kd2) 45... Qxe4+ {[%emt 0:00:04]} 46. Kd2 {[%emt 0:00:06]} Qf3 {[%emt 0:00:49]} 47. Qe6 {[%emt 0:01:03]} Ne4+ {[%emt 0:00:50]} 48. Ke1 {[%emt 0:00:04]} Qh1+ {[%emt 0:01:20] Weighted Error Value: White=0.70/Black=0.28 (precise)} 0-1

[Event "34th Pula Open 2022"]
[Site "Pula"]
[Date "2022.06.21"]
[Round "5.6"]
[White "Jahncke, Giso"]
[Black "Babic, Drasko"]
[Result "1-0"]
[ECO "A45"]
[WhiteElo "2321"]
[BlackElo "2205"]
[Annotator "TA"]
[PlyCount "107"]
[EventDate "2022.06.18"]
[EventType "swiss"]
[EventCountry "CRO"]
[SourceTitle "playchess.com"]
[Source "ChessBase"]
[SourceQuality "1"]
[TimeControl "5400+30"]

{[%evp 9,107,-7,0,0,0,-7,-2,-13,0,0,8,4,32,24,46,31,29,34,95,88,120,-2,0,-42,-41,-125,-120,-121,-125,-127,-116,-125,-114,-116,-116,-122,-101,-132,-130,-123,-120,-137,-129,-114,-43,-43,-38,-65,-68,-90,-68,-83,-43,-54,-38,-94,-81,-86,-85,-93,-81,-98,-36,-56,0,-87,-30,-55,-52,-37,0,0,0,-53,-43,-44,25,-423,-424,-387,-372,-329,464,454,467,472,458,472,477,473,472,459,693,439,444,436,1047,987,1064,1052]} 1. d4 {[%emt 0:00:02]} Nf6 {[%emt 0:00:18]} 2. Bf4 {[%emt 0:00:06]} g6 {[%emt 0:03:46]} 3. Nc3 {[%emt 0:00:27]} d5 {[%emt 0:00:59]} 4. e3 {[%emt 0:00:31]} c6 {[%emt 0:00:12]} 5. h4 {[%emt 0:00:17]} Nbd7 {[%emt 0:00:26]} 6. Nf3 {[%emt 0:01:20] A45: Trompowsky Attack.} Bg7 {[%emt 0:00:16]} 7. Be2 {[%emt 0:03:18]} Qb6 {[%emt 0:09:03]} 8. Rb1 {[%emt 0:00:22] [#] The position is equal.} a5 $146 {[%emt 0:00:22]} ({Predecessor:} 8... Ng4 9. h5 e5 10. h6 exf4 11. hxg7 Rg8 12. exf4 Rxg7 13. Ng5 Ngf6 14. Qd2 Nf8 {1-0 (31) Fiorito,F (2362)-Wieczorek,Z (2155) Chess.com INT 2022}) 9. Ne5 {[%emt 0:00:57]} h6 {[%emt 0:01:12]} 10. Na4 {[%emt 0:12:10]} Qd8 {[%emt 0:01:52]} 11. c4 {[%emt 0:00:33]} O-O {[%emt 0:01:34]} 12. c5 {[%emt 0:02:03]} Nxe5 {[%emt 0:00:35]} 13. Bxe5 {[%emt 0:01:03]} Bf5 {[%emt 0:01:10]} (13... Nd7 $14) 14. Rc1 $16 {[%emt 0:00:31]} h5 {[%emt 0:02:52]} 15. Rg1 {[%emt 0:24:33]} (15. Nb6 $16) 15... Nd7 {[%emt 0:09:46]} 16. Bxg7 {[%emt 0:00:22]} Kxg7 {[%emt 0:00:02]} 17. g4 {[%emt 0:00:59]} (17. Rh1 $15) 17... hxg4 $17 {[%emt 0:00:19]} 18. Bxg4 {[%emt 0:00:07]} Bxg4 {[%emt 0:00:07]} 19. Qxg4 {[%emt 0:01:01]} Rh8 {[%emt 0:00:56]} 20. f4 {[%emt 0:05:49] Against e5} e6 {[%emt 0:03:05]} 21. Rh1 {[%emt 0:08:23]} Rh5 {[%emt 0:01:04]} 22. Rc2 {[%emt 0:00:42]} Qe7 {[%emt 0:01:00]} 23. Kd1 {[%emt 0:02:07]} Rah8 {[%emt 0:00:34] ...e5 is the strong threat.} 24. Rch2 {[%emt 0:04:12]} Qd8 {[%emt 0:02:49]} 25. Kc1 {[%emt 0:01:48]} Nf6 {[%emt 0:00:30]} 26. Qg3 {[%emt 0:00:10]} Ne4 {[%emt 0:00:03]} (26... Ng8 $17 27. Nc3 Nh6) 27. Qe1 $1 $15 {[%emt 0:00:37]} Qa8 {[%emt 0:03:15]} 28. Nc3 {[%emt 0:00:35]} Nf6 {[%emt 0:00:07]} 29. Qe2 {[%emt 0:01:03]} Qa7 {[%emt 0:03:05]} 30. Na4 {[%emt 0:00:21]} Ne4 {[%emt 0:00:56]} 31. Rh3 {[%emt 0:00:45] Prevents Ng3.} Qa8 {[%emt 0:00:00]} 32. R1h2 {[%emt 0:03:16]} ({White should play} 32. Qe1 $15) 32... Nf6 {[%emt 0:00:47]} 33. Nb6 {[%emt 0:00:49]} Qd8 {[%emt 0:00:38]} 34. Qe1 {[%emt 0:00:08]} Ng4 35. Rh1 {[%emt 0:01:31] [#]} Qf6 {[%emt 0:01:33]} (35... Nh6 $1 $17) 36. Nd7 {[%emt 0:01:37]} Qd8 (36... Qf5 {is interesting.} 37. Ne5 Nxe5 38. fxe5 Qd3) 37. Nb6 {[%emt 0:01:25]} Qb8 (37... Nh6 $17) 38. Nd7 {[%emt 0:02:05]} Qa7 {[%emt 0:00:52]} 39. Rg1 {[%emt 0:00:56]} Nh6 {[%emt 0:02:09]} 40. e4 {[%emt 0:00:26] Threatens to win with Qe2.} b5 {[%emt 0:05:08]} 41. Qe2 {[%emt 0:00:58]} (41. Ne5 $11) 41... Ng8 {[%emt 0:01:08]} 42. Ne5 {[%emt 0:00:35]} Nf6 {[%emt 0:01:09]} ({Black should try} 42... dxe4 $15 43. Qxe4 Ne7) 43. Nxg6 $2 {[%emt 0:09:33][%mdl 8192]} fxg6 $19 {[%emt 0:00:18]} 44. Rhg3 {[%emt 0:00:03]} Qf7 {[%emt 0:02:37]} 45. f5 {[%emt 0:04:55]} Nxe4 $4 {[%emt 0:19:50][%mdl 8192]} (45... exf5 $19 {and all is fine.} 46. exd5 Ng4 47. dxc6 Rxh4) 46. Rxg6+ $18 {[%emt 0:00:26] White is clearly winning.} Kf8 {[%emt 0:00:19] [#]} 47. Qh2 $1 {[%emt 0:00:40]} Rxf5 {[%emt 0:12:17] Hoping for ...Rf4.} 48. Qb8+ {[%emt 0:00:23]} Ke7 {[%emt 0:01:06]} 49. Qc7+ {[%emt 0:00:45]} (49. Qxh8 Rf1+ 50. Rxf1 Qxf1+ 51. Kc2 Qe2+ 52. Kc1 Qd2+ 53. Kb1 Qd1#) 49... Ke8 {[%emt 0:02:02]} 50. Qxc6+ {[%emt 0:00:11]} Kd8 {[%emt 0:00:09]} (50... Kf8 $142 51. Qc8+ Ke7 52. Qc7+ (52. Qxh8 Rf1+ 53. Rxf1 Qxf1+ 54. Kc2 Qe2+ 55. Kc1 Qd2+ 56. Kb1 Qd1#) 52... Ke8 53. Qc8+ Ke7 54. Qc7+ (54. Qxh8 Rf1+ 55. Rxf1 Qxf1+ 56. Kc2 Qe2+ 57. Kc1 Qd2+ 58. Kb1 Qd1#) 54... Ke8 55. Qc8+ Ke7) 51. Qa8+ {[%emt 0:00:50]} Ke7 {[%emt 0:01:28] ( -> ...Rf1+)} 52. Qb7+ {[%emt 0:00:13]} (52. Qxh8 {leads to mate.} Rf1+ 53. Rxf1 Qxf1+ 54. Kc2 Qe2+ 55. Kc1 Qd2+ 56. Kb1 Qd1#) 52... Ke8 {[%emt 0:00:14]} (52... Kf8 $142 53. Qb8+ Ke7 54. Qxb5 (54. Qxh8 {is a self mate.} Rf1+ 55. Rxf1 Qxf1+ 56. Kc2 Qe2+ 57. Kc1 Qd2+ 58. Kb1 Qd1#) 54... Rg5 55. Qb7+ (55. R1xg5 Qf4+ 56. Kc2 Qd2+ 57. Kb3 Qe3+ 58. Kc2 Qd2+ 59. Kb3 Qe3+ 60. Kc2 Qd2+ $11) 55... Kf8 56. Qc8+ Ke7 57. Qc7+ Ke8 58. Qc8+ Ke7 59. Qc7+ Ke8 60. Qc8+ Ke7) 53. Qxb5+ {[%emt 0:00:25]} Kd8 {[%emt 0:00:14]} 54. Rg7 {[%emt 0:02:41] Weighted Error Value: White=0.32/Black=0.34} 1-0